Cogmind - Beta 15 @@@ ROGUE MODE // 2025.05.20 @ 15:10:45 Player: Minty Result: Destroyed by D-53 Grenadier with Mini Grenade Launcher Performance ------------- Evolutions (1) 500 Regions Visited (3) 600 Robots Destroyed (36) 180 Value Destroyed (932) 932 Prototype IDs (0) 0 Alien Tech Used (0) 0 Bonus (0) 0 TOTAL SCORE: 2212 Bonus ------- None Cogmind --------- Core Integrity 0/400 Matter 286/300 Energy 83/100 System Corruption 1% Temperature Cool (0) Movement Core (50) Location -9/Mines Parts ------- > --- POWER (1) -------- (None) > --- PROPULSION (2) --- (None) > --- UTILITY (3) ------ Hacking Suite > --- WEAPON (3) ------- Hammer > --- INVENTORY (5) ---- Improved Ion Engine Backup Power III Heat Sink Large Battery (200) High-capacity Battery (250) Peak State ------------ > --- POWER ------------ Light Ion Engine > --- PROPULSION ------- Wheel Compact Wheel > --- UTILITY ---------- Medium Storage Unit Large Battery Hacking Suite > --- WEAPON ----------- Light EM Pulse Cannon Light EM Pulse Cannon Mini Grenade Launcher > --- INVENTORY -------- Backup Power III Hover Unit Heat Sink Small Storage Unit High-capacity Battery Weight Redist. System Beam Cannon Light Assault Rifle Hammer [Rating: 15] Favorites ----------- Power Light Ion Engine Engine Light Ion Engine Propulsion Light Treads Treads Light Treads Leg Aluminum Leg Wheel Wheel Hover Unit Hover Unit Utility Small Storage Unit Device Heat Sink Storage Small Storage Unit Hackware Hacking Suite Weapon Medium Laser Energy Gun Medium Laser Energy Cannon Beam Cannon Launcher Mini Grenade Launcher Impact Weapon Hammer Build | -11 -10 -9 -9 ------- Run | Yrd Mat Mat Min Slots Evolved 2 | . . 2 . Power . | . . . . Propulsion . | . . . . Utility 1 | . . 1 . Weapon 1 | . . 1 . Parts Attached 28 | . 10 17 1 Power 3 | . 1 2 . Engine 3 | . 1 2 . Core . | . . . . Reactor . | . . . . Propulsion 10 | . 3 6 1 Treads 3 | . 2 1 . Leg 1 | . 1 . . Wheel 3 | . . 3 . Hover 3 | . . 2 1 Flight . | . . . . Utility 7 | . 2 5 . Device 3 | . 2 1 . Storage 3 | . . 3 . Processor . | . . . . Hackware 1 | . . 1 . Protection . | . . . . Artifact . | . . . . Weapon 8 | . 4 4 . Energy Gun 2 | . 1 1 . Energy Cannon 4 | . 2 2 . Ballistic Gun . | . . . . Ballistic Cannon . | . . . . Launcher 1 | . . 1 . Special Weapon . | . . . . Impact Weapon 1 | . 1 . . Slashing Weapon . | . . . . Piercing Weapon . | . . . . Special Melee Weapon . | . . . . Unidentified Prototypes . | . . . . Corrupted Parts 1 | . . 1 . System Corruption 1 | . . 1 . Parts Lost 15 | . 5 6 4 Power 1 | . 1 . . Propulsion 9 | . 2 4 3 Utility 1 | . 1 . . Weapon 4 | . 1 2 1 Highest Loss Streak 4 | . 3 4 2 To Critical Strikes . | . . . . Average Backups 7 | . 6 8 9 Power . | . . . 1 Propulsion 2 | . 3 1 . Utility 2 | . 1 3 4 Weapon 2 | . 1 3 2 Tool/Special . | . . . . Unused Backups 4 | . 3 . 1 Power 2 | . 2 . . Propulsion 1 | . 1 . . Utility 1 | . . . 1 Weapon . | . . . . Tool/Special . | . . . . Average Slot Usage (%) 77 | . 86 73 54 Engine 9 | . 10 11 4 Treads 8 | . 12 4 2 Leg 8 | . 15 . . Wheel 1 | . . 6 . Hover 1 | . . 2 3 Device 6 | . 8 4 6 Storage 15 | . 14 17 12 Hackware 4 | . . 8 11 Energy Gun 8 | . 15 . . Energy Cannon 9 | . 5 17 5 Impact Weapon 2 | . 3 . 6 Peak Build Rating 15 | . 9 15 12 Average Rating 8 | . 6 10 8 On Entrance 8 | 6 6 9 12 Naked Turns . | . . . . Heaviest Build 27 | 12 14 27 27 Greatest Support 40 | 20 40 40 20 Greatest Overweight (x) 8 | . 1 8 7 Average Overweight (x) . | . . 1 2 Largest Inventory Capacity 10 | . 8 10 10 Average Capacity 8 | . 8 9 9 Most Carried 10 | . 8 10 10 Average Carried 7 | . 6 9 9 Final Capacity 10 | 8 8 10 5 Final Carried 9 | 6 7 9 5 Class Distribution -------------------- 100% | Mutant Dominant Class ---------------- Mutant | -10/Materials Mutant | -9/Materials Mutant | -9/Mines Resources | -11 -10 -9 -9 ----------- Run | Yrd Mat Mat Min Matter Collected 564 | 200 94 193 77 Remotely . | . . . . Salvage Created 1223 | . 682 432 109 Parts 67 | . 38 28 1 Haulers Intercepted 1 | . 1 . . Recyclers Shooed 2 | . . 1 1 Parts Field Recycled . | . . . . Retrieved Matter . | . . . . Parts Self-Destructed . | . . . . Prevented . | . . . . Kills | -11 -10 -9 -9 ------- Run | Yrd Mat Mat Min Combat Hostiles Destroyed 34 | . 17 10 7 Melee 2 | . 1 . 1 Guns 9 | . 9 . . Cannons 10 | . 6 4 . AOE 10 | . . 5 5 Classes Destroyed 11 | . 6 3 2 Worker 2 | . 1 1 . Builder 1 | . 1 . . Tunneler 1 | . . 1 . Hauler 1 | . 1 . . Recycler 1 | . 1 . . Operator 1 | . . 1 . Swarmer 8 | . 8 . . Grunt 16 | . 9 6 1 Duelist 1 | . . . 1 Sentry 4 | . . 4 . Assembled 5 | . . . 5 Best Kill Streak 8 | . 8 8 5 Combat Bots Only 8 | . 6 8 5 Max Kills in Single Turn 3 | . 2 2 3 Gunslinging . | . . . . Exploded 3 | . . 2 3 Melee 1 | . 1 . 1 Uniques/NPCs Destroyed . | . . . . Combat | -11 -10 -9 -9 -------- Run | Yrd Mat Mat Min Hostile Shots Fired 273 | . 172 66 35 Missed 92 | . 61 24 7 Hits 181 | . 111 42 28 Melee 6 | . . . 6 Projectile 175 | . 111 42 22 AOE 5 | . . . 5 Critical Strikes 3 | . 2 . 1 Damage Taken 2268 | . 1061 587 620 Core 545 | . 140 143 262 Absorbed by Shields . | . . . . Regen/Repaired (Parts) 58 | . 58 . . Core Remaining (%) 72 | 100 44 . . Volleys Fired 71 | . 42 22 7 Largest 3 | . 2 3 2 Hottest 142 | . 120 142 116 Shots Fired 129 | . 83 35 11 Gun 63 | . 63 . . Cannon 58 | . 20 30 8 Launcher 8 | . . 5 3 Special . | . . . . Kinetic . | . . . . Thermal 94 | . 83 7 4 Explosive 8 | . . 5 3 Electromagnetic 27 | . . 23 4 Robot Hit Streak 21 | . 13 21 1 Robot Miss Streak 3 | . 3 2 2 Penetration Max . | . . . . Secondary Targets 3 | . 3 . . Max Gunslinging Chain 1 | . 1 . . Shots Hit Robots 99 | . 59 30 10 Core Hits 67 | . 25 21 21 Critical Kills . | . . . . Critical Parts Destroyed 1 | . . . 1 Critical Strikes 6 | . 5 . 1 Burn 5 | . 5 . . Smash 1 | . . . 1 Melee Attacks 19 | . 10 . 9 Impact 19 | . 10 . 9 Slashing . | . . . . Piercing . | . . . . Sneak Attacks 1 | . 1 . . Combat Hostiles . | . . . . Follow-up Attacks . | . . . . Damage Inflicted 2725 | . 977 911 837 Guns 561 | . 561 . . Cannons 789 | . 208 521 60 Explosions 986 | . . 390 596 Melee 385 | . 208 . 177 Ramming 4 | . . . 4 Kinetic . | . . . . Thermal 906 | . 769 102 35 Explosive 986 | . . 390 596 Electromagnetic 444 | . . 419 25 Impact 385 | . 208 . 177 Slashing . | . . . . Piercing . | . . . . Highest Corruption 1 | . 1 1 1 Average Corruption 1 | . 1 1 1 Corruption Purged . | . . . . Corruption Blocked . | . . . . Effects 4 | . 3 . 1 Matter Fused 2 | . 1 . 1 Heat Flow Errors 1 | . 1 . . Parts Rejected 1 | . 1 . . Overload Shots . | . . . . Overflow Damage 49 | . 31 . 18 Projectiles . | . . . . Explosions . | . . . . Melee 49 | . 31 . 18 Knockbacks 2 | . . . 2 Impact 2 | . . . 2 Kinetic . | . . . . Secondary . | . . . . Self-Inflicted Damage 25 | . . 23 2 Shots 3 | . . 3 . Rammed 1 | . . . 1 Targets Rammed 1 | . . . 1 Kicked . | . . . . Crushed . | . . . . Highest Temperature 372 | . 372 181 162 Average Temperature 102 | . 122 65 80 Received Heat Transfer 534 | . 270 204 60 Effects 1 | . 1 . . Shutdowns 1 | . 1 . . Siege Activations . | . . . . Martial Activations . | . . . . Shielding Activations . | . . . . Robots Disrupted . | . . . . Combat Hostiles . | . . . . Robots Corrupted 3 | . 1 1 1 Combat Hostiles 3 | . 1 1 1 Parts Fried 8 | . 1 4 3 Impact Corruptions 5 | . 4 . 1 Robots Melted . | . . . . Combat Hostiles . | . . . . Parts Melted 4 | . 4 . . Heat Transferred 2775 | . 2479 222 74 Parts Sabotaged . | . . . . Parts Stolen . | . . . . Parts Stripped . | . . . . Power Chain Reactions . | . . . . Alert | -11 -10 -9 -9 ------- Run | Yrd Mat Mat Min Maximum Alert Level 1 | . 1 1 . Low Security (%) 74 | . 84 43 100 Level 1 25 | . 15 56 . Level 2 . | . . . . Level 3 . | . . . . Level 4 . | . . . . Level 5 . | . . . . High Security . | . . . . Max Security . | . . . . Peak Influence 311 | . 271 311 145 Initial 105 | . . 105 105 Average 146 | . 121 198 125 Influence Increases 1008 | . 513 386 109 Destroy 0b10 Robot/C 580 | . 340 200 40 Destroy 0b10 Robot/NC 35 | . 20 15 . Destroy Leader 152 | . 72 70 10 Successful Hack 20 | . 20 . . Select Force Hacks 30 | . 30 . . Disable Machine 45 | . . 15 30 Destroy Structure 41 | . 1 26 14 Lose Combat Pursuer 105 | . 30 60 15 Influence Decreases 904 | . 262 366 276 Entered New Map 312 | . . 146 166 Time Decay 442 | . 212 160 70 Lost Part 150 | . 50 60 40 Squads Dispatched 7 | . 5 2 . Investigation 4 | . 4 . . Extermination . | . . . . Reinforcement 3 | . 1 2 . Assault . | . . . . Garrison . | . . . . Intercept . | . . . . Searches Triggered . | . . . . Construction Impeded . | . . . . Haulers Reinforced . | . . . . Active Scanning Responses . | . . . . Cargo Convoy Interrupts . | . . . . Stealth | -11 -10 -9 -9 --------- Run | Yrd Mat Mat Min Distress Signals 4 | . 3 1 . Communications Jammed . | . . . . Distress Signals . | . . . . Times Spotted 66 | . 30 12 24 Peak Tracking Total 20 | . 7 10 20 Tactical Retreats 3 | . 1 1 1 Traps | -11 -10 -9 -9 ------- Run | Yrd Mat Mat Min Traps Triggered 1 | . 1 . . Indirectly . | . . . . Trap Hack Attempts . | . . . . Triggered . | . . . . Disarmed . | . . . . Reprogrammed 3 | . 3 . . Reused . | . . . . Traps Extracted . | . . . . Installed . | . . . . Triggered . | . . . . Machines | -11 -10 -9 -9 ---------- Run | Yrd Mat Mat Min Machines Disabled 3 | . . 1 2 Max in Single Turn 2 | . . 1 2 Machines Repaired . | . . . . Machines Dismantled . | . . . . Machines Sabotaged . | . . . . Overloaded Fab Kills . | . . . . Hacking | -11 -10 -9 -9 --------- Run | Yrd Mat Mat Min Machines Accessed 6 | . 6 . . Terminals 4 | . 4 . . Fabricators . | . . . . Repair Stations 1 | . 1 . . Recycling Units 1 | . 1 . . Scanalyzers . | . . . . Garrison Access . | . . . . Total Hacks 17 | . 17 . . Successful 6 | . 6 . . Failed 11 | . 11 . . Catastrophic 5 | . 5 . . Database Lockouts . | . . . . Manual 5 | . 5 . . Terminals 13 | . 13 . . Fabricators . | . . . . Repair Stations 2 | . 2 . . Recycling Units 2 | . 2 . . Scanalyzers . | . . . . Garrison Access . | . . . . Terminal Hacks 2 | . 2 . . Locate Traps 1 | . 1 . . Reprogram Traps 1 | . 1 . . Fabricator Hacks . | . . . . Repair Station Hacks 1 | . 1 . . Refit 1 | . 1 . . Recycling Unit Hacks 1 | . 1 . . Report Inventory 1 | . 1 . . Scanalyzer . | . . . . Garrison Access Hacks . | . . . . Unauthorized Hacks 2 | . 2 . . Terminals . | . . . . Fabricators . | . . . . Repair Stations 1 | . 1 . . Patch 1 | . 1 . . Recycling Units 1 | . 1 . . Tunnel 1 | . 1 . . Scanalyzers . | . . . . Garrison Access . | . . . . Data Cores Recovered . | . . . . Used . | . . . . Hacking Detections 5 | . 5 . . Full Trace Events 3 | . 3 . . Feedback Events 1 | . 1 . . Corruption 1 | . 1 . . Feedback Blocked . | . . . . Robot Schematics Acquired . | . . . . Robots Built . | . . . . Authchips . | . . . . Time . | . . . . Total Robot Build Rating . | . . . . Part Schematics Acquired . | . . . . Parts Built . | . . . . Authchips . | . . . . Time . | . . . . Total Part Build Rating . | . . . . Parts Repaired . | . . . . Time . | . . . . Parts Recycled . | . . . . Recycled Matter . | . . . . Retrieved Matter . | . . . . Retrieved Components . | . . . . Parts Scanalyzed . | . . . . Part Schematics Acquired . | . . . . Parts Damaged . | . . . . Bothacking | -11 -10 -9 -9 ------------ Run | Yrd Mat Mat Min Used RIF Installer . | . . . . Robots Hacked . | . . . . Non-combat . | . . . . Combat . | . . . . Robot Hacks Applied . | . . . . Relay Couplers Released . | . . . . Fabnet Peak Effective % . | . . . . Robots Rewired . | . . . . Allies Hacked . | . . . . Hacks Repelled . | . . . . Allies | -11 -10 -9 -9 -------- Run | Yrd Mat Mat Min Total Allies . | . . . . Largest Group . | . . . . Highest-Rated Group . | . . . . Highest-Rated Ally . | . . . . Total Orders . | . . . . Ally Attacks . | . . . . Total Damage . | . . . . Kills . | . . . . Allies Corrupted . | . . . . Allies Melted . | . . . . Intel | -11 -10 -9 -9 ------- Run | Yrd Mat Mat Min Active Infowar (turns) . | . . . . Robot Analysis Total . | . . . . Derelict Logs Recovered . | . . . . Drone Launches . | . . . . Drone Recoveries . | . . . . Exploration | -11 -10 -9 -9 ------------- Run | Yrd Mat Mat Min Turns Passed 1033 | . 565 324 144 Spaces Moved 510 | 1 287 170 52 Core 35 | . . 14 21 Treads 154 | . 116 36 2 Legs 172 | 1 171 . . Wheels 82 | . . 82 . Hover 67 | . . 38 29 Flight . | . . . . Fastest Speed 50 | 120 120 56 50 Average Speed 140 | 120 136 137 166 Slowest Speed 450 | 120 190 450 400 Overloaded Moves . | . . . . Propulsion Burnouts . | . . . . Robots Hopped . | . . . . Potential Cave-ins . | . . . . Cave-ins Triggered . | . . . . Exploration Rate (%) 21 | 1 57 16 12 Regions Visited 3 Branch Regions 1 Pre-discovered Areas 1 | . 1 . . Known Exits Taken . | . . . . Unknown Exits Taken 3 | 1 1 1 . Scrap Searched 1 | . . . 1 Spaces Dug . | . . . . Terrain Destroyed 40 | . . 25 15 Melee . | . . . . Projectile . | . . . . AOE 40 | . . 25 15 Terrain Rammed . | . . . . Walls Destroyed . | . . . . Machines Disabled . | . . . . Actions | -11 -10 -9 -9 --------- Run | Yrd Mat Mat Min Total 671 | . 359 226 86 Wait 7 | . 1 2 4 Move 507 | . 286 169 52 Hop . | . . . . Pick Up 9 | . 5 4 . Fast Attach 13 | . 4 8 1 Attach 14 | . 4 6 4 Detach 12 | . 2 5 5 Swap 8 | . 2 5 1 Drop 10 | . 3 5 2 Fire 71 | . 42 22 7 Melee 19 | . 10 . 9 Ram 1 | . . . 1 Kick . | . . . . Crush . | . . . . Escape Stasis . | . . . . Rewire . | . . . . Trap . | . . . . Miscellaneous . | . . . . Route ------- -11/Scrapyard -10/Materials -9/Materials -9/Mines History --------- Turn | Location | Event 1 | -11/Scrapyard | Discovered new exit (range 0) 1 | -11/Scrapyard | Entered Materials 307 | -10/Materials | Core integrity fell below 50% 341 | -10/Materials | Build established: Mutant 346 | -10/Materials | Lost 3 parts (2n1w) 538 | -10/Materials | Discovered new exit (range 13) 566 | -10/Materials | Entered another Materials area 566 | -9/Materials | Evolved 2 slots: Utility x1, Weapon x1 745 | -9/Materials | Destroyed 8 combat bots 745 | -9/Materials | Lost 4 parts (2n2w) 812 | -9/Materials | Discovered new exit (range 15) 890 | -9/Materials | Entered Mines 925 | -9/Mines | Core integrity fell below 50% 990 | -9/Mines | Assembled infested the area 1031 | -9/Mines | Core integrity fell below 20% 1034 | -9/Mines | Destroyed by D-53 Grenadier with Mini Grenade Launcher Last Messages --------------- 00997_ as-90767 destroyed. 00997_ as-09448 destroyed. 00997_ as-79097 destroyed. 00997_ as-60243 destroyed. 00997_ as-20932 destroyed. 00997_ as-45631 destroyed. 00997_ as-51698 destroyed. 00997_ as-94550 destroyed. 00999_ as-69877 destroyed. 00999_ as-30567 destroyed. 00999_ as-43078 destroyed. 01001_ as-64809 destroyed. 01003_ Dropped Lgt. Assault Rifle. 01005_ Slammed into R-06 Scavenger. 01013_ Acquired 30 matter. 01018_ System corrupted: Matter fused (-9). 01028_ Hover Unit destroyed. 01028_ Core Extractor disabled. 01031_ Dropped Med. Storage Unit. 01033_ D-53 Grenadier knocked back. Map ----- +----------------------------------------------------+ | ?????????????????????????????????????????????????? | | ?????????????????????????????????????????????????? | | ?????????????????????????????????????????????????? | | ?????????????????????????????????????????????????? | | ?????????????????????????????????????????????????? | | ?????????????????????????????????????????????????? | | ?????????????????????????????????????????????????? | | ?????????????????????????????????????????????????? | | ?????????????????????????????????????????????????? | | ?????????????????????????????????????????????????? | | ?????????????????????????????????????????????????? | | ??? # ?????????????????????????????????????????? | | ??? ??????????????????????????????????????? | | ??% ########????????????????????????????? | | ??% #????????????????????????????? | | ?? [ #????????????????????????????? | | ??* ##### #????????????????????????????? | | ??%| ??????????# #####????????????????????????? | | ??????????????????# #????????????????????????? | | ??????????????????##### #????????????????????????? | | ??????????????????????#/#????????????????????????? | | ??????????????????????#%#?###?##?????????????????? | | ??????????????????????# ### ## ##????????????????? | | ???????????????????#### d ####?????????????? | | ???????????????????# #?????????????? | | ???????????????????# @ #?????????????? | | ???????????????????# ! #?????????????? | | ???????????????????# ! #?????????????? | | ???????????????????# % #?????????????? | | ???????????????????# %" #?????????????? | | ???????????????????# " """ #?????????????? | | ???????????????????# """ "" """ #?????????????? | | ???????????????????# ????????????? | | ???????????????????# ###???????????? | | ???????????????????#################?????????????? | | ?????????????????????????????????????????????????? | | ?????????????????????????????????????????????????? | | ?????????????????????????????????????????????????? | | ?????????????????????????????????????????????????? | | | | | | | | | | | | | | | | | | | | | | | +----------------------------------------------------+ Best States ------------- Heat Dissipation 38 Energy Generation 12 Energy Capacity 465 Matter Stores 300 Matter Capacity 300 Sight Range 16 Terrain Scan Density 10 Additional Mass Support 6 Evasion (%) 55 Recoil Reduction 2 Offensive Hacking 10 Item Schematics ----------------- None Robot Schematics ------------------ None Fabricated ------------ Nothing Repaired ---------- Nothing Alien Tech Used ----------------- None Achievements -------------- None Challenges ------------ None Game ------ Seed ImpactAdvancedChainsword Manual? 0 Play Time 00:11:47 Cumulative 1050.3 hours Start 2025.05.19 @ 20:19:16 End 2025.05.20 @ 15:10:45 Sessions 3 Manual Loads 0 Difficulty Rogue Special Mode None Game No. 1302 Rogue 1019 Adventurer 124 Explorer 159 Win Type - Total 46 Types 32/0/8/4/1/0/0/1/0/0 Lore% 91 Gallery% 86 Achievement% 80 Wizard Run 0 Options --------- Layout 0 ASCII 0 Keyboard 1 Movement Numpad Keybinds 0 Fullscreen 2 Font 18/X11 Map View 76x50 Zoom Use 0% Tactical HUD 1 Map Filters NONE Filters NONE Steam 1 RUN: 4be5d9b9-a598-445f-9de1-1521c65e074a